Cogmind - Beta 16.1 @@@ ROGUE MODE // 2026.01.05 @ 01:24:58 Player: Boris Result: Destroyed by 78-YAS(R) with Subdweller Machine Gun Performance ------------- Evolutions (0) 0 Regions Visited (3) 600 Robots Destroyed (38) 190 Value Destroyed (754) 754 Prototype IDs (14) 280 Alien Tech Used (0) 0 Bonus (0) 0 TOTAL SCORE: 1824 Bonus ------- None Cogmind --------- Core Integrity 0/250 Matter 290/300 Energy 89/100 System Corruption 0% Temperature Cool (0) Movement Core (200) Ox3 Location -10/Subcaves Parts ------- > --- POWER (1) -------- (None) > --- PROPULSION (2) --- (None) > --- UTILITY (2) ------ Transport Network Coupler > --- WEAPON (2) ------- Subdweller Shrapnel Launcher Mining Claw > --- INVENTORY (5) ---- Makeshift Light Armor Plating Hacking Suite Subdweller Laser Powered Cannon Peak State ------------ > --- POWER ------------ Subdweller Power Source > --- PROPULSION ------- Light Treads Wheel > --- UTILITY ---------- Medium Storage Unit Experimental Sensor Array > --- WEAPON ----------- Subdweller Beam Cannon Subdweller Machine Gun > --- INVENTORY -------- Transport Network Coupler Makeshift Light Armor Plating Hacking Suite EM Pulse Gun Grenade Launcher Rocket Launcher Datajack Mining Claw Botcube [Rating: 20] Favorites ----------- Power Subdweller Power Source Engine Subdweller Power Source Propulsion Light Treads Treads Light Treads Wheel Wheel Flight Unit Flight Unit Utility Medium Storage Unit Device Heat Sink Storage Medium Storage Unit Processor Transport Network Coupler Protection Makeshift Light Armor Plating Weapon Small Laser Energy Gun Small Laser Energy Cannon Subdweller Beam Cannon Ballistic Gun Subdweller Machine Gun Launcher Rocket Launcher Slashing Weapon Mining Claw Special Melee Weapon Datajack Build | -11 -10 -10 -10 ------- Run | Yrd Mat Min Sub Slots Evolved . | . . . . Power . | . . . . Propulsion . | . . . . Utility . | . . . . Weapon . | . . . . Parts Attached 33 | 6 8 5 14 Power 3 | 1 1 . 1 Engine 3 | 1 1 . 1 Core . | . . . . Reactor . | . . . . Propulsion 7 | 2 1 2 2 Treads 4 | 2 1 . 1 Leg . | . . . . Wheel 2 | . . 1 1 Hover . | . . . . Flight 1 | . . 1 . Utility 9 | 1 2 . 6 Device 5 | . 1 . 4 Storage 2 | 1 1 . . Processor 1 | . . . 1 Hackware . | . . . . Protection 1 | . . . 1 Artifact . | . . . . Weapon 14 | 2 4 3 5 Energy Gun 5 | 2 1 1 1 Energy Cannon 1 | . . . 1 Ballistic Gun 2 | . . . 2 Ballistic Cannon . | . . . . Launcher 4 | . 1 2 1 Special Weapon . | . . . . Impact Weapon . | . . . . Slashing Weapon 1 | . 1 . . Piercing Weapon . | . . . . Special Melee Weapon 1 | . 1 . . Unidentified Prototypes 1 | . . . 1 Parts Lost 9 | . 1 1 7 Power 1 | . 1 . . Propulsion 4 | . . 1 3 Utility 1 | . . . 1 Weapon 3 | . . . 3 Highest Loss Streak 4 | . 1 1 4 To Critical Strikes . | . . . . Average Backups 7 | 1 7 8 7 Power . | . . . . Propulsion . | . 1 . . Utility 2 | . 1 3 3 Weapon 3 | . 3 3 3 Tool/Special . | . . . . Unused Backups 8 | . 4 1 3 Power 1 | . 1 . . Propulsion 2 | . 2 . . Utility 2 | . . 1 1 Weapon 3 | . 1 . 2 Tool/Special . | . . . . Average Slot Usage (%) 95 | . 97 100 91 Engine 13 | . 13 14 12 Treads 20 | . 28 25 11 Wheel 6 | . . 1 13 Device 11 | . 12 14 9 Storage 13 | . 14 14 12 Protection 1 | . . . 3 Energy Gun 16 | . 25 24 5 Energy Cannon 3 | . . . 7 Slashing Weapon 6 | . 1 2 11 Peak Build Rating 20 | 7 9 11 20 Average Rating 10 | 5 7 9 13 On Entrance 6 | . 7 9 10 Avg Prop Armor Cover (%) 14 | . . 11 14 Naked Turns . | . . . . Heaviest Build 29 | 12 19 20 29 Greatest Support 40 | 40 40 40 20 Greatest Overweight (x) 4 | . . 1 4 Average Overweight (x) . | . . . 1 Largest Inventory Capacity 10 | 8 10 10 10 Average Capacity 9 | 6 9 10 9 Most Carried 10 | 5 10 10 10 Average Carried 8 | 2 8 9 8 Final Capacity 10 | 8 10 10 5 Final Carried 10 | 5 10 9 5 Class Distribution -------------------- 85% | Mutant 14% | Scavenger-Mutant Dominant Class ---------------- Mutant | -10/Materials Mutant | -10/Mines Mutant | -10/Subcaves Resources | -11 -10 -10 -10 ----------- Run | Yrd Mat Min Sub Matter Collected 966 | 80 376 53 457 Remotely . | . . . . Salvage Created 847 | . 539 77 231 Parts 66 | . 38 13 15 Haulers Intercepted 2 | . 2 . . Recyclers Shooed 1 | . . 1 . Parts Field Recycled . | . . . . Retrieved Matter . | . . . . Parts Self-Destructed 9 | . . . 9 Prevented . | . . . . Parts Restored . | . . . . Kills | -11 -10 -10 -10 ------- Run | Yrd Mat Min Sub Combat Hostiles Destroyed 28 | . 13 9 6 Guns 14 | . 6 3 5 Cannons 1 | . . . 1 AOE 12 | . 6 6 . Classes Destroyed 9 | . 8 . 1 Worker 2 | . 2 . . Builder 2 | . 1 1 . Hauler 2 | . 2 . . Recycler 1 | . 1 . . Operator 1 | . 1 . . Watcher 2 | . 2 . . Swarmer 15 | . 6 9 . Grunt 7 | . 7 . . Subdweller 6 | . . . 6 Best Kill Streak 5 | . 5 3 3 Combat Bots Only 3 | . 3 3 3 Max Kills in Single Turn 4 | . 4 3 1 Gunslinging . | . . . . Exploded 3 | . 2 3 . Melee . | . . . . Uniques/NPCs Destroyed . | . . . . Combat | -11 -10 -10 -10 -------- Run | Yrd Mat Min Sub Hostile Shots Fired 119 | . 51 22 46 Missed 34 | . 17 3 14 Hits 85 | . 34 19 32 Projectile 85 | . 34 19 32 Critical Strikes 1 | . . 1 . Damage Taken 1494 | . 392 250 852 Core 267 | . 48 33 186 Absorbed by Shields . | . . . . Core Remaining (%) 100 | 100 . . . Volleys Fired 97 | . 46 13 38 Largest 2 | . 2 2 2 Hottest 100 | . 90 90 100 Shots Fired 148 | . 83 20 45 Gun 114 | . 77 14 23 Cannon 14 | . . . 14 Launcher 20 | . 6 6 8 Special . | . . . . Kinetic 8 | . . . 8 Thermal 111 | . 77 14 20 Explosive 20 | . 6 6 8 Electromagnetic 9 | . . . 9 Robot Hit Streak 13 | . 13 3 11 Robot Miss Streak 3 | . 2 3 1 Penetration Max . | . . . . Secondary Targets . | . . . . Shots Hit Robots 97 | . 61 10 26 Core Hits 55 | . 33 11 11 Critical Kills 1 | . . . 1 Critical Parts Destroyed . | . . . . Critical Strikes 6 | . 5 . 1 Burn 5 | . 5 . . Destroy 1 | . . . 1 Melee Attacks 37 | . 6 3 28 Impact . | . . . . Slashing 37 | . 6 3 28 Piercing . | . . . . Sneak Attacks 5 | . 2 2 1 Combat Hostiles . | . . . . Follow-up Attacks . | . . . . Damage Inflicted 2277 | . 1271 532 474 Guns 1100 | . 716 79 305 Cannons 145 | . . . 145 Explosions 788 | . 434 354 . Melee 225 | . 102 99 24 Ramming 19 | . 19 . . Kinetic 144 | . . . 144 Thermal 1035 | . 716 79 240 Explosive 788 | . 434 354 . Electromagnetic 66 | . . . 66 Impact . | . . . . Slashing 225 | . 102 99 24 Piercing . | . . . . Highest Corruption . | . . . . Average Corruption . | . . . . Corruption Purged . | . . . . Corruption Blocked . | . . . . Overload Shots . | . . . . Overflow Damage 88 | . 44 44 . Projectiles . | . . . . Explosions 49 | . 28 21 . Melee 39 | . 16 23 . Knockbacks . | . . . . Impact . | . . . . Kinetic . | . . . . Secondary . | . . . . Self-Inflicted Damage 224 | . 47 95 82 Shots 8 | . 2 3 3 Rammed 6 | . 6 . . Targets Rammed 7 | . 7 . . Kicked . | . . . . Crushed 1 | . 1 . . Highest Temperature 45 | . 45 . 14 Average Temperature 22 | . 22 . 10 Received Heat Transfer 183 | . 147 . 36 Siege Activations . | . . . . Martial Activations . | . . . . Shielding Activations . | . . . . Robots Disrupted . | . . . . Combat Hostiles . | . . . . Robots Corrupted . | . . . . Combat Hostiles . | . . . . Parts Fried . | . . . . Impact Corruptions . | . . . . Robots Melted 1 | . 1 . . Combat Hostiles 1 | . 1 . . Parts Melted 5 | . 2 1 2 Heat Transferred 2800 | . 2279 211 310 Parts Sabotaged . | . . . . Parts Stolen . | . . . . Parts Stripped . | . . . . Power Chain Reactions . | . . . . Alert | -11 -10 -10 -10 ------- Run | Yrd Mat Min Sub Maximum Alert Level . | . . . . Low Security (%) 100 | 100 100 100 . Level 1 . | . . . . Level 2 . | . . . . Level 3 . | . . . . Level 4 . | . . . . Level 5 . | . . . . High Security . | . . . . Max Security . | . . . . Peak Influence 189 | . 189 185 . Initial 21 | . . 21 . Average 54 | . 41 122 . Influence Increases 795 | . 506 289 . Destroy 0b10 Robot/C 440 | . 260 180 . Destroy 0b10 Robot/NC 50 | . 45 5 . Destroy Leader 98 | . 68 30 . Successful Hack 20 | . 20 . . Select Force Hacks 60 | . 60 . . Disable Machine 45 | . 15 30 . Destroy Structure 67 | . 23 44 . Lose Combat Pursuer 15 | . 15 . . Influence Decreases 795 | . 452 183 160 Entered New Map 117 | . . 33 84 Time Decay 483 | . 277 140 66 Lost Part 30 | . 10 10 10 Purge Threat 165 | . 165 . . Squads Dispatched 3 | . 3 . . Investigation 2 | . 2 . . Extermination . | . . . . Reinforcement 1 | . 1 . . Assault . | . . . . Garrison . | . . . . Intercept . | . . . . Searches Triggered . | . . . . Construction Impeded . | . . . . Haulers Reinforced . | . . . . Active Scanning Responses . | . . . . Cargo Convoy Interrupts . | . . . . Stealth | -11 -10 -10 -10 --------- Run | Yrd Mat Min Sub Distress Signals 4 | . 4 . . Communications Jammed . | . . . . Distress Signals . | . . . . Times Spotted 41 | . 24 9 8 Peak Tracking Total 4 | . 4 3 3 Tactical Retreats 1 | . 1 . . Traps | -11 -10 -10 -10 ------- Run | Yrd Mat Min Sub Traps Triggered 2 | . . . 2 Indirectly . | . . . . Trap Hack Attempts 13 | . 13 . . Triggered . | . . . . Disarmed 1 | . 1 . . Reprogrammed . | . . . . Reused . | . . . . Traps Extracted . | . . . . Installed . | . . . . Triggered . | . . . . Machines | -11 -10 -10 -10 ---------- Run | Yrd Mat Min Sub Machines Disabled 4 | . 1 2 1 Max in Single Turn 1 | . 1 1 1 Machines Repaired . | . . . . Machines Dismantled . | . . . . Machines Sabotaged . | . . . . Overloaded Fab Kills . | . . . . Hacking | -11 -10 -10 -10 --------- Run | Yrd Mat Min Sub Machines Accessed 10 | . 9 . 1 Terminals 7 | . 7 . . Fabricators . | . . . . Repair Stations . | . . . . Recycling Units 2 | . 2 . . Scanalyzers . | . . . . Garrison Access . | . . . . Total Hacks 26 | . 25 . 1 Successful 16 | . 15 . 1 Failed 10 | . 10 . . Catastrophic . | . . . . Database Lockouts . | . . . . Manual 19 | . 19 . . Terminals 20 | . 20 . . Fabricators . | . . . . Repair Stations . | . . . . Recycling Units 5 | . 5 . . Scanalyzers . | . . . . Garrison Access . | . . . . Terminal Hacks 4 | . 3 . 1 Robot Analysis 1 | . 1 . . Unreport Threat 2 | . 2 . . Proto ID Catalog 1 | . . . 1 Fabricator Hacks . | . . . . Repair Station Hacks . | . . . . Recycling Unit Hacks 2 | . 2 . . Retrieve Components 2 | . 2 . . Scanalyzer . | . . . . Garrison Access Hacks . | . . . . Unauthorized Hacks 10 | . 10 . . Terminals 8 | . 8 . . Assimilate 3 | . 3 . . Botnet 2 | . 2 . . Operators 1 | . 1 . . Skim 2 | . 2 . . Fabricators . | . . . . Repair Stations . | . . . . Recycling Units 2 | . 2 . . Tunnel 2 | . 2 . . Scanalyzers . | . . . . Garrison Access . | . . . . Data Cores Recovered . | . . . . Used . | . . . . Hacking Detections 8 | . 8 . . Full Trace Events . | . . . . Feedback Events . | . . . . Feedback Blocked . | . . . . Robot Schematics Acquired . | . . . . Robots Built . | . . . . Authchips . | . . . . Time . | . . . . Total Robot Build Rating . | . . . . Part Schematics Acquired . | . . . . Parts Built . | . . . . Authchips . | . . . . Time . | . . . . Total Part Build Rating . | . . . . Part Studies Acquired . | . . . . Parts Repaired . | . . . . Time . | . . . . Parts Recycled . | . . . . Recycled Matter . | . . . . Retrieved Matter . | . . . . Retrieved Components 14 | . 14 . . Parts Scanalyzed . | . . . . Part Schematics Acquired . | . . . . Parts Damaged . | . . . . Bothacking | -11 -10 -10 -10 ------------ Run | Yrd Mat Min Sub Used RIF Installer . | . . . . Robots Hacked . | . . . . Non-combat . | . . . . Combat . | . . . . Robot Hacks Applied . | . . . . Relay Couplers Released . | . . . . Fabnet Peak Effective % . | . . . . Robots Rewired . | . . . . Allies Hacked . | . . . . Hacks Repelled . | . . . . Allies | -11 -10 -10 -10 -------- Run | Yrd Mat Min Sub Total Allies . | . . . . Largest Group . | . . . . Highest-Rated Group . | . . . . Highest-Rated Ally . | . . . . Total Orders . | . . . . Ally Attacks . | . . . . Total Damage . | . . . . Kills . | . . . . Allies Corrupted . | . . . . Allies Melted . | . . . . Intel | -11 -10 -10 -10 ------- Run | Yrd Mat Min Sub Active Infowar (turns) 788 | . . . 788 Optics 383 | . . . 383 Sensors 291 | . . . 291 T.N.C. 115 | . . . 115 Robot Analysis Total 1 | . 1 . . Derelict Logs Recovered 2 | . . 1 1 Drone Launches . | . . . . Drone Recoveries . | . . . . Exploration | -11 -10 -10 -10 ------------- Run | Yrd Mat Min Sub Turns Passed 2826 | 79 1213 293 1241 Spaces Moved 1585 | 45 614 160 766 Core 148 | 4 . . 144 Treads 852 | 41 614 127 70 Legs . | . . . . Wheels 585 | . . 33 552 Hover . | . . . . Flight . | . . . . Fastest Speed 50 | 50 160 95 50 Average Speed 136 | 150 160 146 115 Slowest Speed 260 | 160 160 160 260 Overloaded Moves . | . . . . Propulsion Burnouts . | . . . . Robots Hopped . | . . . . Potential Cave-ins . | . . . . Cave-ins Triggered . | . . . . Exploration Rate (%) 41 | 4 94 30 38 Regions Visited 3 Branch Regions 2 Pre-discovered Areas 4 | . 2 1 1 Known Exits Taken . | . . . . Unknown Exits Taken 3 | 1 1 1 . Scrap Searched 8 | . . 1 7 Spaces Dug 84 | . 13 11 60 Terrain Destroyed 152 | . 22 49 81 Melee 2 | . 2 . . Projectile 2 | . . . 2 AOE 148 | . 20 49 79 Terrain Rammed . | . . . . Walls Destroyed . | . . . . Machines Disabled . | . . . . Actions | -11 -10 -10 -10 --------- Run | Yrd Mat Min Sub Total 2001 | 54 741 191 1015 Wait 147 | . 21 . 126 Move 1582 | 44 613 159 766 Hop . | . . . . Pick Up 26 | 4 11 3 8 Fast Attach 18 | 6 2 1 9 Attach 9 | . . 3 6 Detach 3 | . . . 3 Swap 34 | . 15 5 14 Drop 28 | . 7 4 17 Fire 97 | . 46 13 38 Melee 37 | . 6 3 28 Ram . | . . . . Kick . | . . . . Crush 7 | . 7 . . Escape Stasis . | . . . . Rewire . | . . . . Trap 13 | . 13 . . Miscellaneous . | . . . . Route ------- -11/Scrapyard -10/Materials (discovered 4 exits: [*Mat x3] / [*Min]) -10/Mines -10/Subcaves History --------- Turn | Location | Event 10 | -11/Scrapyard | Discovered new exit (range 15) 80 | -11/Scrapyard | Entered Materials 261 | -10/Materials | Discovered new exit (range 7) 308 | -10/Materials | Build established: Mutant 314 | -10/Materials | Discovered new exit (range 4) 755 | -10/Materials | Discovered new exit (range 13) 929 | -10/Materials | Discovered new exit (range 10) 1293 | -10/Materials | Entered Mines 1346 | -10/Mines | Learned location of Zion (-6) 1457 | -10/Mines | Discovered new exit (range 8) 1467 | -10/Mines | Found a damaged Exp. Sensor Array with a note attached 1473 | -10/Mines | Found Prototype Device 1494 | -10/Mines | Received a Rocket Launcher from a helpful Derelict 1586 | -10/Mines | Entered Subcaves 1587 | -10/Subcaves | Approached by a straggling Scientist 1589 | -10/Subcaves | A swath of the cavern ceiling suddenly collapsed 1611 | -10/Subcaves | Shifting Twisted Machinery released Sub. Laser 1884 | -10/Subcaves | Learned location of Mines (-10) 1896 | -10/Subcaves | Identified Exp. Sensor Array 1918 | -10/Subcaves | Build established: Scavenger-Mutant 2310 | -10/Subcaves | Build established: Mutant 2669 | -10/Subcaves | Ambushed by Subdweller buried in earth 2669 | -10/Subcaves | Ambushed by Subdweller buried in earth 2669 | -10/Subcaves | Ambushed by Subdweller buried in earth 2689 | -10/Subcaves | Core integrity fell below 50% 2725 | -10/Subcaves | Lost 4 parts (2n2w) 2764 | -10/Subcaves | Ambushed by Subdwellers from Twisted Machinery 2801 | -10/Subcaves | Visited 4L-MR0's lab 2811 | -10/Subcaves | Found Powered Cannon 2820 | -10/Subcaves | Core integrity fell below 20% 2827 | -10/Subcaves | Destroyed by 78-YAS(R) with Subdweller Machine Gun Last Messages --------------- Tripod Weapons Platform Hoverbase Flightbrick Gun Armor Tower Shield Power Bank Rainbow Chip Procsplitter VL-GR5's Exoskeleton "Deathgrip" Powered Cannon 02805_ Testing Chamber breached. 02810_ Dropped Sub. Optics. 02810_ Dropped Battle Rifle. 02811_ Acquired Powered Cannon. 02819_ Acquired 28 matter. 02824_ Searching scrap... 02824_ Found Flamer. 02824_ Found Sub. Shrapnel Launcher. 02824_ Found 61 Matter. 02825_ Acquired Sub. Shrapnel Launcher. Map ----- +----------------------------------------------------+ | ### #### ##???# ## #???????????????????????? | | # # #??## ##???## " #???????????????????????? | | # # ##??###???## "" ##???????????????????????? | | #?????#### """####????????????????????????? | | # ###???## """"##???????????????????????????? | | # # ##??# ""##????????????????????????????? | | # ^##?# " ""##?????????????????????????????? | | ####"" ##??????????????????????????????? | | ## # ## ######????????????????????????????????? | | ?####### "#????????????????????????????????????? | | ???????# "#????????????????????????????????????? | | ???????# ""###??????????????????????????????????? | | ???????# "" #??????????????????????????????????? | | ???????#^ ##??????????????????????????????????? | | ???????# #???????????????? ?????????????????? | | ???????## #???????????????? #????????????????? | | ??????### #???????????????# ####?????????????? | | ????### ##??????????????## #?????????????? | | ????# ^ ##??????????????# #???? ????? | | ##??# #??????????????# #??? #?? | | ### ^ #??????????????# ### ? | | ### #??????????????? ? | | #### ##??????#####??? # $ | | # ### #??#####<%<###?# ?? # # | | # ## #??#! #### <### #??? ? | | ######??#["####<@<## #??? ??? | | ^ ####????## ## ###" #????# #???? | | ## ##???#" ### #" #?#### #?????? | | ### #???#"" #?#R ### #?????? | | ## ###???#"X #?# #?????? | | #"" ##?????#"" #?# R#" #?????? | | " ##??????#" #### ## #?????? | | " #???????#" ## [ <# ## ##????? | | " #???????# #+##%] <## ## ##???? | | #" #??######""# ## [ <## ### #???? | | #### # #### " <### #?# #???? | | #"" "###? ##"" ""### #?## ##???? | | ######??? #######?### #??# #????? | | #??????### # ##????????# #??#### ##???? | | #???#### # # #????????# ????## #???? | | ##??# #????????## ???#""" #???? | | #??# ##?###?????# ??## ##???? | | ##??### # #### ##????# ???## #???# | | ##?????#### ### # ##???### ##??#""" ####" | | #??????### ### #??????###??## """" | | ###???## ### ### ##?###??????# """ | | &=##?## ##?#### ### #??????# ## | | %&### #?## # #?# #??????# " ## | | "[!] ###]*### ### #??????## """ # | | &!##& #### #???????##"" " | +----------------------------------------------------+ Best States ------------- Heat Dissipation 39 Energy Generation 15 Energy Capacity 250 Matter Stores 300 Matter Capacity 300 Sight Range 21 Robot Scan Range 20 Terrain Scan Density 10 Armor Coverage 100 Evasion (%) 50 Recoil Reduction 2 Item Schematics ----------------- None Robot Schematics ------------------ None Fabricated ------------ Nothing Repaired ---------- Nothing Studied --------- None Alien Tech Used ----------------- None Achievements -------------- None Challenges ------------ None Game ------ Seed UtilityDroneCore Manual? 0 Play Time 00:19:17 Cumulative 729.2 hours Start 2026.01.05 @ 01:03:49 End 2026.01.05 @ 01:24:58 Sessions 1 Manual Loads 0 Difficulty Rogue Special Mode None Game No. 233 Rogue 217 Adventurer 15 Explorer 1 Win Type - Total 42 Types 11/5/10/2/2/0/6/3/1/2 Lore% 96 Gallery% 91 Achievement% 72 Wizard Run 0 Options --------- Layout 0 ASCII 0 Keyboard 0 Movement Numpad Keybinds 0 Fullscreen 1 Font 18/SmallcapsGlow Map View 76x50 Zoom Use 0% Tactical HUD 1 Map Filters NONE Filters NONE Steam 1 RUN: 26c8ec03-a2a3-47f9-bfb0-334c6a780d35